bitfinex/quotes_ETHUSD_20251021
["timestamp","ask_amount","ask_price","bid_price","bid_amount"]
[1761004801464,0.04470977,3987.4,3987.3,0.002]
[1761004802127,29.49556877,3987.4,3987.3,0.002]
[1761004802362,18.59957562,3987.4,3987.3,0.002]
[1761004802541,16.07692762,3987.4,3987.3,0.002]
[1761004802741,13.51376462,3987.4,3987.3,0.002]
[1761004802932,11.05198377,3987.4,3987.3,0.002]
[1761004803133,14.82996977,3987.4,3987.3,0.002]
[1761004803534,14.55951377,3987.4,3987.3,0.002]
[1761004803762,13.55951377,3987.4,3987.3,0.002]
[1761004804168,14.32500877,3987.4,3987.3,0.002]
[1761004804662,14.43840877,3987.4,3987.3,0.002]
[1761004805166,14.14322477,3987.4,3987.3,0.002]
[1761004806067,15.02920567,3987.4,3987.3,0.002]
[1761004806245,23.16247855,3987.4,3987.3,0.002]
[1761004806452,23.91671263,3987.4,3987.3,0.002]
[1761004806854,23.87300286,3987.4,3987.3,0.002]
[1761004807373,34.26251486,3987.4,3987.3,0.002]
[1761004807969,26.85816879,3987.4,3987.3,0.002]
[1761004808194,26.31382086,3987.4,3987.3,0.002]
[1761004808352,34.76939486,3987.4,3987.3,0.002]
[1761004809849,34.81311252,3987.4,3987.3,0.002]
[1761004810952,35.35746045,3987.4,3987.3,0.002]
[1761004812781,35.0925963,3987.4,3987.3,0.002]
[1761004813093,15.07780152,3987.4,3987.3,0.002]
[1761004813254,7.35183252,3987.4,3987.3,0.002]
[1761004813454,34.71396552,3987.4,3987.3,0.002]
[1761004813871,34.49529352,3987.4,3987.3,0.002]
[1761004814084,33.23246352,3987.4,3987.3,0.002]
[1761004814284,30.97338152,3987.4,3987.3,0.002]
[1761004814580,30.94523352,3987.4,3987.3,0.002]
[1761004814785,20.92777952,3987.4,3987.3,0.002]
[1761004815187,15.26087964,3987.4,3987.3,0.002]
[1761004815388,7.35183252,3987.4,3987.3,0.002]
[1761004815713,30.65758052,3987.4,3987.3,0.002]
[1761004816487,35.28317852,3987.4,3987.3,0.002]
[1761004816689,34.86935552,3987.4,3987.3,0.002]
[1761004816991,28.25703452,3987.4,3987.3,0.002]
[1761004817175,3.69980464,3987.4,3987.3,0.002]
[1761004817374,23.55046854,3987.4,3987.3,0.002]
[1761004817579,24.79643232,3987.4,3987.3,0.002]
[1761004818388,37.07098132,3987.4,3987.3,0.002]
[1761004819086,37.02726366,3987.4,3987.3,0.002]
[1761004819585,39.48904451,3987.4,3987.3,0.002]
[1761004819762,38.98216451,3987.4,3987.3,0.002]
[1761004819962,39.20956073,3987.4,3987.3,0.002]
[1761004821567,39.25327854,3987.4,3987.3,0.002]
[1761004821888,39.53276232,3987.4,3987.3,0.002]
[1761004822891,39.92620416,3987.4,3987.3,0.002]
[1761004823465,39.64672038,3987.4,3987.3,0.002]
[1761004823691,24.52351238,3987.4,3987.3,0.002]
[1761004824377,21.36451238,3987.4,3987.3,0.002]
[1761004824576,38.26443238,3987.4,3987.3,0.002]
[1761004824776,30.25311538,3987.4,3987.3,0.002]
[1761004825693,26.37506238,3987.4,3987.3,0.002]
[1761004826197,26.48846238,3987.4,3987.3,0.002]
[1761004826571,8.68024038,3987.4,3987.3,0.002]
[1761004826789,38.68024038,3987.4,3987.3,0.002]
[1761004829303,39.18712038,3987.4,3987.3,0.002]
[1761004829512,39.28770945,3987.4,3987.3,0.002]
[1761004832009,39.56719323,3987.4,3987.3,0.002]
[1761004833700,39.52347542,3987.4,3987.3,0.002]
[1761004833896,39.56720094,3987.4,3987.3,0.002]
[1761004834698,39.83206509,3987.4,3987.3,0.002]
[1761004836015,39.43862325,3987.4,3987.3,0.002]
[1761004836183,39.83210087,3987.4,3987.3,0.002]
[1761004838505,39.43862325,3987.4,3987.3,0.002]
[1761004839084,42.08262325,3987.4,3987.3,0.002]
[1761004839816,41.8177591,3987.4,3987.3,0.002]
[1761004841396,41.77403358,3987.4,3987.3,0.002]
[1761004841716,42.1675386,3987.4,3987.3,0.002]
[1761004843623,48.31805482,3987.4,3987.3,0.002]
[1761004843915,42.55878351,3987.4,3987.3,0.002]
[1761004844117,42.05190351,3987.4,3987.3,0.002]
[1761004844299,45.32427849,3987.4,3987.3,0.002]
[1761004845514,42.44531631,3987.4,3987.3,0.002]
[1761004845818,25.77261539,3987.4,3987.3,0.4327]
[1761004846116,44.26306639,3987.4,3987.3,0.002]
[1761004846423,44.2193377,3987.4,3987.3,0.4327]
[1761004847124,44.20429011,3987.4,3987.3,0.4327]
[1761004848117,34.67765511,3987.4,3987.3,0.4327]
[1761004848420,22.68521023,3987.4,3987.3,0.4327]
[1761004848618,22.14883611,3987.4,3987.3,0.4327]
[1761004849029,14.24800789,3987.4,3987.3,0.4327]
[1761004849322,30.10363989,3987.4,3987.3,0.4327]
[1761004849796,20.00352401,3987.4,3987.3,0.4327]
[1761004849987,16.84452401,3987.4,3987.3,0.4327]
[1761004850191,24.83004101,3987.4,3987.3,0.4327]
[1761004850427,27.33794089,3987.4,3987.3,0.4327]
[1761004851292,41.92165989,3987.4,3987.3,0.4327]
[1761004851923,40.65941989,3987.4,3987.3,0.4327]
[1761004852122,47.21666874,3987.4,3987.3,0.002]
[1761004852325,47.49615252,3987.4,3987.3,0.002]
[1761004852625,47.92885252,3987.4,3987.3,0.002]
[1761004853203,44.75488789,3987.4,3987.3,0.4327]
[1761004853416,43.85457007,3987.4,3987.3,0.4327]
[1761004853616,44.36145007,3987.4,3987.3,0.4327]
[1761004857040,43.85457007,3987.4,3987.3,0.4327]
[1761004858345,34.27961766,3987.4,3987.3,0.4327]
[1761004858643,37.43861766,3987.4,3987.3,0.4327]
[1761004859412,40.40727851,3987.4,3987.3,0.002]
[1761004859612,40.79546229,3987.4,3987.3,0.002]
[1761004859928,41.22816229,3987.4,3987.3,0.002]
[1761004860332,11.18444451,3987.4,3987.3,0.002]
[1761004860549,41.18444451,3987.4,3987.3,0.002]
[1761004861513,41.45030866,3987.4,3987.3,0.002]
[1761004862575,41.49403319,3987.4,3987.3,0.002]
[1761004862868,41.12046904,3987.4,3987.3,0.002]
[1761004863362,41.22916904,3987.4,3987.3,0.002]
[1761004863851,41.62259356,3987.4,3987.3,0.002]
[1761004866852,41.57886903,3987.4,3987.3,0.002]
[1761004867422,41.29938525,3987.4,3987.3,0.002]
[1761004867653,38.03168525,3987.4,3987.3,0.002]
[1761004867863,41.19068525,3987.4,3987.3,0.002]
[1761004868735,37.7893244,3987.4,3987.3,0.4637]
[1761004868957,38.2962044,3987.4,3987.3,0.4637]
[1761004869133,38.6254044,3987.4,3987.3,0.002]
[1761004869336,38.90899063,3987.4,3987.3,0.002]
[1761004870955,39.41441491,3987.4,3987.3,0.002]
[1761004871129,41.87619576,3987.4,3987.3,0.002]
[1761004871760,48.29214817,3987.4,3987.3,0.002]
[1761004872476,47.67936194,3987.4,3987.3,0.002]
[1761004872672,15.21758109,3987.4,3987.3,0.002]
[1761004872852,45.21758109,3987.4,3987.3,0.002]
[1761004873384,44.82415657,3987.4,3987.3,0.002]
[1761004873591,14.78043229,3987.4,3987.3,0.002]
[1761004873749,41.62143229,3987.4,3987.3,0.002]
[1761004873944,40.65285229,3987.4,3987.3,0.4637]
[1761004874151,43.81285229,3987.4,3987.3,0.4637]
[1761004874541,40.65285229,3987.4,3987.3,0.4637]
[1761004874747,43.81285229,3987.4,3987.3,0.4637]
[1761004874954,37.39689988,3987.4,3987.3,0.4637]
[1761004875165,28.81001288,3987.4,3987.3,0.4637]
[1761004875790,36.38095288,3987.4,3987.3,0.4637]
[1761004876780,37.39689988,3987.4,3987.3,0.4637]
[1761004878852,37.44062051,3987.4,3987.3,0.4637]
[1761004879448,37.44062051,3987.4,3987.3,0.002]
[1761004880884,39.90240136,3987.4,3987.3,0.002]
[1761004881063,40.18598759,3987.4,3987.3,0.002]
[1761004881571,40.69286759,3987.4,3987.3,0.002]
[1761004881755,40.97834696,3987.4,3987.3,0.002]
[1761004881955,41.43804696,3987.4,3987.3,0.002]
[1761004882155,40.97834696,3987.4,3987.3,0.002]
[1761004882652,10.97834696,3987.4,3987.3,0.002]
[1761004882856,38.78143026,3987.4,3987.3,0.002]
[1761004883683,8.78143026,3987.4,3987.3,0.002]
[1761004883877,38.78143026,3987.4,3987.3,0.002]
[1761004884073,38.82515742,3987.4,3987.3,0.002]
[1761004884486,38.33009327,3987.4,3987.3,0.002]
[1761004884686,38.72354965,3987.4,3987.3,0.002]
[1761004885071,45.13950206,3987.4,3987.3,0.002]
[1761004885282,47.60128291,3987.4,3987.3,0.002]
[1761004885984,47.55755575,3987.4,3987.3,0.002]
[1761004887384,47.8224199,3987.4,3987.3,0.002]
[1761004888594,47.55755575,3987.4,3987.3,0.002]
[1761004888759,17.55755575,3987.4,3987.3,0.002]
[1761004888965,47.55755575,3987.4,3987.3,0.002]
[1761004889263,47.60128187,3987.4,3987.3,0.002]
[1761004890999,47.31769564,3987.4,3987.3,0.002]
[1761004892387,47.77939564,3987.4,3987.3,0.002]
[1761004898198,48.06298187,3987.4,3987.3,0.002]
[1761004898400,47.62579937,3987.4,3987.3,0.002]
[1761004899101,50.26979937,3987.4,3987.3,0.002]
[1761004899294,50.53466352,3987.4,3987.3,0.002]
[1761004900276,50.26979937,3987.4,3987.3,0.002]
[1761004901521,50.31352791,3987.4,3987.3,0.002]
[1761004901704,50.70699798,3987.4,3987.3,0.002]
[1761004903023,20.70699798,3987.4,3987.3,0.002]
[1761004903229,50.70699798,3987.4,3987.3,0.002]
[1761004906638,50.66326944,3987.4,3987.3,0.002]
[1761004907128,50.70699774,3987.4,3987.3,0.002]
[1761004907340,50.66326944,3987.4,3987.3,0.002]
[1761004909206,20.66326944,3987.4,3987.3,0.002]
[1761004909409,50.66326944,3987.4,3987.3,0.002]
[1761004910033,50.70699795,3987.4,3987.3,0.002]
[1761004911033,30.50688,3986.0,3985.7,0.4408]
[1761004911325,30.50688,3986.0,3985.9,0.4428]
[1761004911326,35.39488,3986.0,3985.9,0.4428]
[1761004911731,38.34091432,3986.0,3985.9,0.002]
[1761004911931,38.29718266,3986.0,3985.9,0.002]
[1761004912145,37.90366073,3986.0,3985.9,0.4428]
[1761004912318,40.36544158,3986.0,3985.9,0.4428]
[1761004912503,40.36544158,3986.0,3985.9,0.002]
[1761004913052,40.80824158,3986.0,3985.9,0.002]
[1761004914315,10.80824158,3986.0,3985.9,0.002]
[1761004914520,40.80824158,3986.0,3985.9,0.002]
[1761004915048,41.20177261,3986.0,3985.9,0.002]
[1761004915342,35.57999176,3986.0,3985.9,0.4428]
[1761004915542,38.29719176,3986.0,3985.9,0.4428]
[1761004920224,38.29719176,3986.0,3985.9,0.002]
[1761004920423,45.26159455,3986.0,3985.9,0.002]
[1761004920916,31.728,3985.4,3985.3,0.181167]
[1761004921112,29.402796,3985.4,3985.3,0.181167]
[1761004921337,14.802758,3985.4,3985.3,0.181167]
[1761004921541,34.888,3985.4,3985.3,0.616667]
[1761004922160,32.43461664,3985.4,3985.3,0.616667]
[1761004922370,30.262078,3985.4,3985.3,0.616667]
[1761004922659,32.337463,3985.4,3985.3,0.616667]
[1761004923657,34.888,3985.4,3985.3,0.616667]
[1761004923828,34.93173446,3985.4,3985.3,0.616667]
[1761004926371,34.09941546,3985.4,3985.3,0.616667]
[1761004926668,34.93173446,3985.4,3985.3,0.616667]
[1761004927385,34.93173446,3985.4,3985.3,0.618667]
[1761004927582,37.44089288,3985.4,3985.3,0.618667]
[1761004927951,38.73181563,3985.4,3985.3,0.002]
[1761004928256,39.01540186,3985.4,3985.3,0.002]
[1761004928458,38.75053771,3985.4,3985.3,0.002]
[1761004928643,38.46695148,3985.4,3985.3,0.4375]
[1761004930979,37.91855148,3985.4,3985.3,0.4375]
[1761004931755,38.46695148,3985.4,3985.3,0.4375]
[1761004932070,38.75053771,3985.4,3985.3,0.4375]
[1761004932279,38.79427456,3985.4,3985.3,0.002]
[1761004932472,39.05913871,3985.4,3985.3,0.002]
[1761004933050,39.45272428,3985.4,3985.3,0.002]
[1761004933982,39.18786013,3985.4,3985.3,0.4375]
[1761004934147,38.9042739,3985.4,3985.3,0.4375]
[1761004935444,30.01312442,3985.4,3985.3,0.4375]
[1761004935681,7.83448084,3985.4,3985.3,0.4375]
[1761004935910,37.83448084,3985.4,3985.3,0.4375]
[1761004936081,35.32532242,3985.4,3985.3,0.4375]
[1761004936283,37.83448084,3985.4,3985.3,0.4375]
[1761004936492,37.79074399,3985.4,3985.3,0.4375]
[1761004938476,32.12158557,3985.4,3985.3,0.4375]
[1761004938675,13.086416,3985.4,3985.3,0.4375]
[1761004938861,15.380373,3985.4,3985.3,0.4375]
[1761004939068,14.587209,3985.4,3985.3,0.4375]
[1761004939379,12.859209,3985.4,3985.3,0.4375]
[1761004939685,14.587209,3985.4,3985.3,0.4375]
[1761004939895,17.61850141,3985.4,3985.3,0.4375]
[1761004940911,4.93173441,3985.4,3985.3,0.4375]
[1761004941207,31.28222041,3985.4,3985.3,0.4375]
[1761004942083,32.93570641,3985.4,3985.3,0.4375]
[1761004942802,29.80351541,3985.4,3985.3,0.4375]
[1761004942980,30.80351541,3985.4,3985.3,0.4375]
[1761004943383,29.13567141,3985.4,3985.3,0.4375]
[1761004943978,9.26213241,3985.4,3985.3,0.4375]
[1761004944905,9.26313241,3985.4,3985.3,0.4375]
[1761004945102,10.03662241,3985.4,3985.3,0.4375]
[1761004945521,7.83328141,3985.4,3985.3,0.4375]
[1761004946004,13.81420441,3985.4,3985.3,0.4375]
[1761004946181,0.04473441,3985.4,3985.3,2.94672138]
[1761004946376,0.1258,3985.4,3985.3,0.75545214]
[1761004946577,0.1258,3985.4,3985.3,3.26467352]
[1761004946776,0.1258,3985.4,3985.3,0.75545214]
[1761004946981,0.1258,3985.4,3985.3,0.4375]
[1761004948213,0.1258,3985.4,3985.3,2.94672138]
[1761004950532,24.760862,3985.4,3985.3,0.002]
[1761004950727,27.8184708,3985.4,3985.3,0.002]
[1761004950961,30.2481875,3985.4,3985.3,0.002]
[1761004951124,27.73902908,3985.4,3985.3,0.002]
[1761004951302,11.348511,3985.4,3985.3,0.4453]
[1761004951627,8.634853,3985.4,3985.3,0.4453]
[1761004951928,4.89,3985.4,3985.3,0.4453]
[1761004952231,7.4786,3985.4,3985.3,0.4453]
[1761004952630,11.588152,3985.4,3985.3,0.4453]
[1761004953506,27.163266,3985.4,3985.3,0.4453]
[1761004954030,26.125531,3985.4,3985.3,0.4453]
[1761004954332,20.397229,3985.4,3985.3,0.4453]
[1761004954627,18.950352,3985.4,3985.3,0.4453]
[1761004954835,17.462205,3985.4,3985.3,0.4453]
[1761004955039,16.462205,3985.4,3985.3,0.4453]
[1761004955203,12.385436,3985.4,3985.3,0.4453]
[1761004955705,15.272719,3985.4,3985.3,0.4453]
[1761004956639,18.675129,3985.4,3985.3,0.4453]
[1761004956843,15.588853,3985.4,3985.3,0.4453]
[1761004957153,9.121474,3985.4,3985.3,0.4453]
[1761004957313,3.944269,3985.4,3985.3,0.4453]
[1761004957506,9.465846,3985.4,3985.3,0.002]
[1761004957836,9.465846,3985.4,3985.3,0.4453]
[1761004958338,9.465846,3985.4,3985.3,0.4035711]
[1761004958549,4.89,3985.4,3985.3,0.4035711]
[1761004958747,11.044007,3985.4,3985.3,0.4035711]
[1761004958915,8.450712,3985.4,3985.3,0.4035711]
[1761004959111,8.450712,3985.4,3985.1,0.2277]
[1761004959112,1.728,3985.3,3985.1,0.2277]
[1761004959338,11.218778,3985.2,3985.1,0.2277]
[1761004959647,18.136945,3985.2,3985.1,0.2277]
[1761004959819,18.136945,3985.2,3984.9,0.002]
[1761004959820,33.90162971,3985.2,3984.9,0.002]
[1761004960024,23.814461,3985.0,3984.9,0.002]
[1761004960227,18.968143,3985.0,3984.9,0.002]
[1761004960425,18.968143,3985.0,3984.9,0.4453]
[1761004960614,20.501588,3985.0,3984.9,0.002]
[1761004960818,25.37725708,3985.0,3984.9,0.002]
[1761004961716,32.93427408,3985.0,3984.9,0.002]
[1761004962046,31.92797308,3985.0,3984.9,0.002]
[1761004962665,6.60366908,3985.0,3984.9,0.002]
[1761004962953,33.37236316,3985.0,3984.9,0.002]
[1761004963885,31.77173888,3985.0,3984.9,0.002]
[1761004964319,26.44847788,3985.0,3984.9,0.002]
[1761004964526,16.10193988,3985.0,3984.9,0.4453]
[1761004964864,20.36939816,3985.0,3984.9,0.002]
[1761004965022,22.83117901,3985.0,3984.9,0.002]
[1761004965822,28.29313473,3985.0,3984.9,0.002]
[1761004966025,18.97565988,3985.0,3984.9,0.4453]
[1761004966624,18.97565988,3985.0,3984.9,0.002]
[1761004966942,15.10408488,3985.0,3984.9,0.4453]
[1761004967555,9.50071988,3985.0,3984.9,0.4453]
[1761004967760,9.63608688,3985.0,3984.9,0.4453]
[1761004968057,7.99825988,3985.0,3984.9,0.4453]
[1761004968226,8.58991888,3985.0,3984.9,0.4453]
[1761004968859,12.69069488,3985.0,3984.9,0.4453]
[1761004969157,10.62472988,3985.0,3984.9,0.002]
[1761004969766,4.93273888,3985.0,3984.9,0.002]
[1761004969945,28.72385888,3985.0,3984.9,0.002]
[1761004970138,26.76778988,3985.0,3984.9,0.002]
[1761004970953,32.12022288,3985.0,3984.9,0.002]
[1761004971558,29.82341188,3985.0,3984.9,0.002]
[1761004971764,26.66241188,3985.0,3984.9,0.002]
[1761004971962,31.49713988,3985.0,3984.9,0.002]
[1761004972528,30.49213988,3985.0,3984.9,0.002]
[1761004972759,8.82794088,3985.0,3984.9,0.4453]
[1761004973064,7.41026788,3985.0,3984.9,0.4453]
[1761004973258,1.77173888,3985.0,3984.9,0.4453]
[1761004973483,2.597,3985.1,3984.9,2.95477326]
[1761004973664,1.8528,3985.0,3984.9,2.95477326]
[1761004973833,0.1248,3985.0,3984.9,2.51147326]
[1761004974030,0.1248,3985.0,3984.9,0.002]
[1761004974451,0.1248,3985.0,3984.9,2.95477326]
[1761004974930,0.1248,3985.0,3984.9,0.4453]
[1761004975771,0.1248,3985.0,3984.9,2.95477326]
[1761004975972,0.1248,3985.0,3984.9,3.25025476]
[1761004978299,0.001,3985.4,3984.9,3.25025476]
[1761004978300,0.001,3985.4,3985.3,2.50922138]
[1761004978592,0.1258,3985.4,3985.3,2.95252138]
[1761004978896,0.1258,3985.4,3985.3,3.52398589]
[1761004980200,0.001,3985.4,3985.3,3.5490781]
[1761004980489,0.001,3985.4,3985.3,3.64878589]
[1761004980705,0.001,3985.4,3985.3,3.74937496]
[1761004981680,0.001,3985.4,3985.3,0.4433]
[1761004981861,0.1258,3985.4,3985.3,0.4433]
[1761004982578,0.1258,3985.4,3985.2,0.2277]
[1761004982998,0.1258,3985.4,3985.3,0.4413]
[1761004983562,0.1258,3985.4,3984.9,0.4433]
[1761004983765,6.696793,3985.1,3984.9,0.002]
[1761004984091,0.1248,3985.0,3984.9,0.002]
[1761004984295,23.363317,3985.0,3984.9,0.002]
[1761004984605,27.99310926,3985.0,3984.9,0.002]
[1761004984993,6.48259226,3985.0,3984.9,0.002]
[1761004985323,34.47361028,3985.0,3984.9,0.002]
[1761004986922,37.63661028,3985.0,3984.9,0.002]
[1761004988803,20.878892,3985.0,3984.9,0.002]
[1761004989035,2.650272,3985.0,3984.9,0.4433]
[1761004989541,11.506756,3985.0,3984.9,0.002]
[1761004990110,11.057382,3985.0,3984.9,0.002]
[1761004990346,13.557493,3985.0,3984.9,0.4433]
[1761004990700,12.541703,3985.0,3984.9,0.002]
[1761004991100,3.738043,3985.0,3984.9,0.4433]
[1761004991333,9.10261,3985.0,3984.9,0.4433]
[1761004992449,11.491131,3985.0,3984.9,0.4433]
[1761004993356,16.626161,3985.0,3984.9,0.4433]
[1761004993560,0.04373615,3985.1,3984.9,0.4433]
[1761004993738,1.77173615,3985.1,3985.0,0.0250941]
[1761004994050,0.04373615,3985.1,3985.0,3.05814836]
[1761004994253,0.04373615,3985.1,3985.0,0.99003808]
[1761004994452,0.04373615,3985.1,3985.0,0.4413]
[1761004994961,9.538829,3985.0,3984.9,0.002]
[1761004995123,9.538829,3985.0,3984.9,0.4433]
[1761004995951,14.619149,3985.0,3984.9,0.002]
[1761004996621,16.347149,3985.0,3984.9,0.002]
[1761004997052,18.983334,3985.0,3984.9,0.002]
[1761004997222,21.06136252,3985.0,3984.9,0.002]
[1761004997437,23.5707728,3985.0,3984.9,0.002]
[1761004998046,36.3154388,3985.0,3984.9,0.002]
[1761004998847,36.8223188,3985.0,3984.9,0.002]
[1761004999853,36.86606199,3985.0,3984.9,0.002]
[1761005000967,37.25968513,3985.0,3984.9,0.002]
[1761005001566,37.54327136,3985.0,3984.9,0.002]
[1761005001875,37.80813551,3985.0,3984.9,0.002]
[1761005002081,8.04067056,3985.0,3984.9,0.002]
[1761005002287,38.04067056,3985.0,3984.9,0.002]
[1761005004873,37.80813551,3985.0,3984.9,0.002]
[1761005005395,3.01654219,3984.6,3984.5,0.002]
[1761005005684,38.21817867,3984.6,3984.5,0.002]
[1761005005895,38.68279257,3984.6,3984.5,0.002]
[1761005006055,39.12030084,3984.6,3984.5,0.002]
[1761005006397,39.07654063,3984.6,3984.5,0.002]
[1761005006584,41.53832148,3984.6,3984.5,0.002]
[1761005007480,42.29351817,3984.6,3984.5,0.002]
[1761005007663,42.02865402,3984.6,3984.5,0.002]
[1761005008262,42.29351817,3984.6,3984.5,0.002]
[1761005008985,42.02865402,3984.6,3984.5,0.002]
[1761005009154,42.07241586,3984.6,3984.5,0.002]
[1761005009350,42.33728001,3984.6,3984.5,0.002]
[1761005009984,42.07241586,3984.6,3984.5,0.002]
[1761005010384,40.32082963,3984.6,3984.5,0.002]
[1761005010587,38.23008157,3984.6,3984.5,0.002]
[1761005010787,40.89120157,3984.6,3984.5,0.002]
[1761005011295,41.39808157,3984.6,3984.5,0.002]
[1761005012096,11.39808157,3984.6,3984.5,0.002]
[1761005012274,41.79181515,3984.6,3984.5,0.002]
[1761005013564,42.07540138,3984.6,3984.5,0.002]
[1761005014666,42.34026553,3984.6,3984.5,0.002]
[1761005015196,3.01679416,3984.2,3984.1,1e-08]
[1761005015373,37.93984441,3984.2,3984.1,1e-08]
[1761005015577,38.42318039,3984.2,3984.1,1e-08]
[1761005015997,38.81695784,3984.2,3984.1,1e-08]
[1761005016299,39.26845784,3984.2,3984.1,1e-08]
[1761005016592,41.44665246,3984.2,3984.1,1e-08]
[1761005018660,41.49041333,3984.2,3984.1,1e-08]
[1761005018898,3.01704617,3983.8,3983.7,0.002]
[1761005019067,38.22468265,3983.8,3983.7,0.002]
[1761005019264,38.4431324,3983.8,3983.7,0.002]
[1761005019573,39.34361325,3983.8,3983.7,0.002]
[1761005019978,39.38738252,3983.8,3983.7,0.002]
[1761005020173,42.03138252,3983.8,3983.7,0.002]
[1761005020388,13.78338252,3983.8,3983.7,0.002]
[1761005022195,14.17723563,3983.8,3983.7,0.002]
[1761005022414,13.8936494,3983.8,3983.7,0.002]
[1761005023304,14.3451494,3983.8,3983.7,0.002]
[1761005023716,44.3451494,3983.8,3983.7,0.002]
[1761005024221,44.3451494,3983.8,3981.0,0.2298]
[1761005024222,0.50688,3982.0,3981.4,0.4515]
[1761005024419,1.728,3981.7,3981.4,0.4515]
[1761005024610,21.409602,3981.5,3981.4,0.4515]
[1761005024805,19.056456,3981.5,3981.4,0.4515]
[1761005025005,18.363382,3981.5,3981.4,0.4515]
[1761005025211,20.87499822,3981.5,3981.4,0.4515]
[1761005025719,34.23961622,3981.5,3981.4,0.4515]
[1761005025890,34.36620203,3981.5,3981.4,0.4515]
[1761005026091,1.728,3981.3,3981.1,0.4515]
[1761005026291,33.62649625,3981.2,3981.1,0.4515]
[1761005026516,33.601446,3981.2,3981.1,0.4515]
[1761005026710,34.911,3981.2,3981.1,0.4515]
[1761005026912,34.484893,3981.2,3981.1,0.4515]
[1761005027235,24.224681,3981.2,3981.1,0.4515]
[1761005027713,37.42280548,3981.2,3981.1,0.4515]
[1761005027904,36.42421148,3981.2,3981.1,0.4515]
[1761005028229,32.34406448,3981.2,3981.1,0.4515]
[1761005028518,27.980454,3981.2,3981.1,0.4515]
[1761005028685,31.091541,3981.2,3981.1,0.4515]
[1761005028886,4.23986857,3981.1,3980.3,0.4515]
[1761005029121,25.820358,3980.8,3980.7,0.6813]
[1761005029321,28.600358,3980.8,3980.7,0.6813]
[1761005029620,27.719469,3980.8,3980.7,0.6813]
[1761005029789,22.371983,3980.8,3980.7,0.6813]
[1761005030702,32.383347,3980.8,3980.7,0.6813]
[1761005030900,22.560596,3980.8,3980.7,0.6813]
[1761005031823,1.728,3980.8,3980.7,0.6813]
[1761005032034,8.649991,3980.8,3980.7,1.00086092]
[1761005032394,7.446543,3980.8,3980.7,1.00086092]
[1761005032836,7.444321,3980.8,3980.7,1.00086092]
[1761005033207,4.261321,3980.8,3980.7,1.00086092]
[1761005033399,7.445321,3980.8,3980.7,0.6813]
[1761005033723,4.912,3980.8,3980.7,0.6813]
[1761005033924,12.585164,3980.8,3980.7,0.6813]
[1761005034227,1.728,3980.8,3980.7,3.19342098]
[1761005034423,1.728,3980.8,3980.7,1.0008421]
[1761005036710,1.728,3980.8,3980.7,0.6813]
[1761005037027,5.85891,3980.8,3980.7,0.6813]
[1761005037815,19.142088,3980.8,3980.7,0.6813]
[1761005038948,14.358031,3980.8,3980.7,0.6813]
[1761005039152,9.636815,3980.8,3980.7,0.6813]
[1761005039949,14.396379,3980.8,3980.7,0.6813]
[1761005040452,10.297364,3980.8,3980.7,0.6813]
[1761005041030,14.014365,3980.8,3980.7,0.6813]
[1761005041247,8.316009,3980.8,3980.7,0.6813]
[1761005041740,4.91,3980.8,3980.7,0.6813]
[1761005042250,0.1256,3980.8,3980.7,3.51297563]
[1761005042416,0.1256,3980.8,3980.7,1.00085465]
[1761005042845,0.1256,3980.8,3980.7,0.6813]
[1761005043544,0.1256,3980.8,3980.7,3.19342098]
[1761005043747,0.1256,3980.8,3980.7,0.6813]
[1761005047354,20.635649,3980.8,3980.7,0.6813]
[1761005048168,4.641611,3980.8,3980.7,0.6813]
[1761005048369,8.55327,3980.8,3980.7,0.6813]
[1761005049456,15.771242,3980.7,3980.6,0.002]
[1761005049756,17.617038,3980.7,3980.6,0.002]
[1761005050362,25.660185,3980.7,3980.6,0.002]
[1761005050752,23.928407,3980.7,3980.6,0.002]
[1761005050921,12.274137,3980.7,3980.6,0.4649]
[1761005051129,5.710752,3980.7,3980.6,0.4649]
[1761005051446,1.728,3980.7,3980.6,0.76282721]
[1761005051627,4.909,3980.7,3980.6,0.76282721]
[1761005052159,4.909,3980.7,3980.6,3.2750113]
[1761005052348,4.909,3980.7,3980.6,0.76282721]
[1761005053536,1.728,3980.7,3980.6,0.76282721]
[1761005056230,10.525147,3981.6,3980.6,3.27499263]
[1761005056454,0.1248,3981.0,3980.8,2.51201044]
[1761005056649,0.1248,3981.0,3980.9,2.51199477]
[1761005057165,0.1248,3981.0,3980.9,2.96349477]
[1761005057352,0.1248,3981.0,3980.9,3.57380344]
[1761005058532,0.1248,3981.0,3980.9,3.59892338]
[1761005058734,0.1248,3980.9,3980.6,0.002]
[1761005058934,34.87130098,3980.7,3980.6,0.002]
[1761005059434,36.35163912,3980.7,3980.6,0.002]
[1761005060679,35.52562706,3980.7,3980.6,0.002]
[1761005060986,37.98740791,3980.7,3980.6,0.002]
[1761005061157,41.92640791,3980.7,3980.6,0.002]
[1761005061362,42.16675178,3980.7,3980.6,0.002]
[1761005061879,42.95660469,3980.7,3980.6,0.002]
[1761005062084,39.95673575,3980.7,3980.6,0.002]
[1761005062381,40.30760469,3980.7,3980.6,0.002]
[1761005062584,43.50060469,3980.7,3980.6,0.002]
[1761005063081,43.20850368,3980.7,3980.6,0.002]
[1761005065183,44.56750368,3980.7,3980.6,0.002]
[1761005065365,44.61750368,3980.7,3980.6,0.002]
[1761005066287,33.01988479,3979.3,3979.2,1.45809818]
[1761005066585,37.94188479,3979.3,3979.2,1.45809818]
[1761005066786,39.27406564,3979.3,3979.2,1.45809818]
[1761005066956,39.66825714,3979.3,3979.2,1.45809818]